bitfinex-derivatives/quotes_BTCF0:USTF0_20251229
["timestamp","ask_amount","ask_price","bid_price","bid_amount"]
[1766987096292,0.02495337,90190.0,90178.0,0.02016632]
[1766987096488,0.02495337,90189.0,90178.0,0.02016632]
[1766987096688,0.02495337,90188.0,90178.0,0.02016632]
[1766987096893,0.02495337,90187.0,90178.0,0.02016632]
[1766987097090,0.02495337,90186.0,90178.0,0.02016632]
[1766987097304,0.02495337,90185.0,90178.0,0.02016632]
[1766987097497,0.21951873,90190.0,90178.0,0.02016632]
[1766987097498,0.02495337,90184.0,90178.0,0.02016632]
[1766987097799,0.02495337,90183.0,90178.0,0.02016632]
[1766987097998,0.21951873,90190.0,90178.0,0.02016632]
[1766987097999,0.02495337,90182.0,90178.0,0.02016632]
[1766987098199,0.02495337,90181.0,90178.0,0.02016632]
[1766987098400,0.21951873,90190.0,90178.0,0.02016632]
[1766987104106,0.14996,90193.0,90178.0,0.02016632]
[1766987104307,0.14996,90193.0,90181.0,0.0111004]
[1766987104506,0.14996,90193.0,90181.0,0.0411004]
[1766987104717,0.00016632,90201.0,90181.0,0.03]
[1766987104906,0.0556,90200.0,90181.0,0.03]
[1766987105106,0.0556,90200.0,90189.0,0.0110994]
[1766987106114,0.0556,90200.0,90186.0,0.0110997]
[1766987106310,0.0556,90200.0,90186.0,0.0410997]
[1766987108312,0.27511873,90200.0,90186.0,0.03]
[1766987109719,0.27511873,90200.0,90186.0,0.0410997]
[1766987110424,0.02484435,90199.0,90186.0,0.0410997]
[1766987110722,0.02484435,90198.0,90186.0,0.0410997]
[1766987110921,0.02484435,90197.0,90186.0,0.0410997]
[1766987111122,0.02484435,90196.0,90186.0,0.0410997]
[1766987111325,0.02484435,90195.0,90186.0,0.03]
[1766987111523,0.02484435,90194.0,90178.0,0.09452632]
[1766987111718,0.02484435,90193.0,90178.0,0.09452632]
[1766987111924,0.02484435,90192.0,90178.0,0.10452632]
[1766987112225,0.02484435,90191.0,90184.0,0.0111]
[1766987112427,0.02484435,90190.0,90184.0,0.0411]
[1766987112628,5e-08,90189.0,90184.0,0.0411]
[1766987112925,0.0556,90200.0,90184.0,0.0411]
[1766987115736,0.0556,90200.0,90184.0,0.01]
[1766987116337,0.0556,90200.0,90184.0,0.0211]
[1766987118330,0.0556,90200.0,90186.0,0.0110997]
[1766987118535,0.0556,90200.0,90188.0,0.0110995]
[1766987118841,0.0556,90200.0,90188.0,0.01]
[1766987119226,0.0556,90199.0,90188.0,0.01]
[1766987120732,0.0556,90199.0,90182.0,0.0111002]
[1766987121040,0.0556,90199.0,90182.0,0.0411002]
[1766987121742,0.0556,90199.0,90184.0,0.0110999]
[1766987121943,0.0556,90199.0,90184.0,0.0410999]
[1766987124544,0.02531145,90198.0,90184.0,0.0410999]
[1766987124745,0.02531145,90197.0,90184.0,0.0410999]
[1766987124947,0.02531145,90196.0,90184.0,0.0410999]
[1766987125144,0.02531145,90195.0,90186.0,0.0110997]
[1766987125344,0.02531145,90194.0,90189.0,0.0110994]
[1766987125545,5e-08,90193.0,90189.0,0.0110994]
[1766987125744,0.0556,90199.0,90189.0,0.0110994]
[1766987125945,0.00016632,90201.0,90194.0,0.0110987]
[1766987126146,0.0556,90200.0,90194.0,0.0110987]
[1766987126745,0.0556,90199.0,90194.0,0.0110987]
[1766987128748,0.00016632,90201.0,90194.0,0.0110987]
[1766987128953,0.0556,90199.0,90194.0,0.0110987]
[1766987129742,0.00016632,90201.0,90194.0,0.0110987]
[1766987129942,0.01096324,90200.0,90194.0,0.0110987]
[1766987130248,0.01096324,90200.0,90191.0,0.0110991]
[1766987130442,0.01096324,90200.0,90188.0,0.0110995]
[1766987131446,0.01096324,90200.0,90191.0,0.0110992]
[1766987131638,0.01096324,90200.0,90178.0,0.09452632]
[1766987131851,0.01096324,90200.0,90178.0,0.12452632]
[1766987132055,0.01096324,90200.0,90189.0,0.0110993]
[1766987132956,0.01096324,90200.0,90185.0,0.0110998]
[1766987133155,0.01096324,90200.0,90185.0,0.0410998]
[1766987134850,0.01096324,90200.0,90185.0,0.03]
[1766987137649,0.02506124,90199.0,90185.0,0.03]
[1766987137849,0.02506124,90198.0,90185.0,0.03]
[1766987138050,0.02506124,90197.0,90185.0,0.03]
[1766987138250,0.02506124,90196.0,90185.0,0.03]
[1766987138558,0.02506124,90195.0,90185.0,0.03]
[1766987138757,0.02506124,90194.0,90185.0,0.03]
[1766987138960,0.02506124,90193.0,90185.0,0.03]
[1766987139160,0.02506124,90192.0,90185.0,0.03]
[1766987139362,0.02506124,90191.0,90185.0,0.03]
[1766987139660,0.02506124,90190.0,90185.0,0.03]
[1766987139856,0.02506124,90189.0,90185.0,0.03]
[1766987140050,0.02506124,90188.0,90185.0,0.03]
[1766987140246,0.02506124,90187.0,90185.0,0.03]
[1766987140454,0.02506124,90186.0,90185.0,0.03]
[1766987140654,0.02506124,90190.0,90185.0,0.03]
[1766987141360,0.0110994,90189.0,90185.0,0.02]
[1766987141563,0.0110997,90187.0,90178.0,0.09452632]
[1766987141765,0.02506124,90186.0,90178.0,0.12452632]
[1766987142162,0.01096324,90200.0,90178.0,0.12452632]
[1766987143162,0.0110997,90187.0,90178.0,0.12452632]
[1766987143461,0.0110994,90190.0,90178.0,0.12452632]
[1766987145058,0.01096324,90200.0,90178.0,0.12452632]
[1766987148063,0.01096324,90200.0,90178.0,0.13562702]
[1766987149364,0.01096324,90200.0,90180.0,0.0111004]
[1766987149662,0.01096324,90200.0,90180.0,0.0411004]
[1766987150363,0.01096324,90200.0,90182.0,0.0111002]
[1766987150565,0.01096324,90200.0,90182.0,0.0411002]
[1766987151266,0.01096324,90200.0,90182.0,0.03]
[1766987154155,0.0251067,90199.0,90182.0,0.03]
[1766987154358,0.0251067,90198.0,90182.0,0.03]
[1766987154559,0.0251067,90197.0,90182.0,0.03]
[1766987154767,0.0251067,90196.0,90182.0,0.03]
[1766987154967,0.0251067,90195.0,90182.0,0.03]
[1766987155269,0.0251067,90194.0,90182.0,0.03]
[1766987155471,0.0251067,90193.0,90182.0,0.03]
[1766987155660,0.0251067,90192.0,90182.0,0.03]
[1766987155869,0.0251067,90191.0,90182.0,0.03]
[1766987156059,0.0251067,90190.0,90182.0,0.03]
[1766987156265,0.0251067,90189.0,90182.0,0.03]
[1766987156460,0.0251067,90188.0,90182.0,0.03]
[1766987156662,0.0251067,90187.0,90182.0,0.03]
[1766987156968,0.0251067,90186.0,90182.0,0.03]
[1766987157166,0.0251067,90185.0,90182.0,0.03]
[1766987157469,0.0251067,90184.0,90182.0,0.03]
[1766987157667,0.0110987,90195.0,90182.0,0.03]
[1766987157854,0.02520354,90194.0,90182.0,0.03]
[1766987158058,0.02520354,90193.0,90182.0,0.03]
[1766987158260,0.02520354,90192.0,90182.0,0.03]
[1766987158461,0.02520354,90191.0,90182.0,0.03]
[1766987158759,0.02520354,90190.0,90182.0,0.03]
[1766987158960,0.02520354,90189.0,90182.0,0.03]
[1766987159165,0.02520354,90188.0,90182.0,0.03]
[1766987159359,0.01096324,90200.0,90182.0,0.03]
[1766987159360,0.0111001,90184.0,90182.0,0.03]
[1766987159560,0.02520354,90183.0,90182.0,0.01]
[1766987159866,0.0110996,90188.0,90182.0,0.03]
[1766987160070,0.0111005,90181.0,90178.0,2e-08]
[1766987160264,0.0110997,90187.0,90178.0,0.0556]
[1766987160471,0.011099,90193.0,90173.0,9e-08]
[1766987160768,0.09436,90194.0,90170.0,0.09436]
[1766987160769,0.0110991,90192.0,90171.0,0.0556]
[1766987160976,0.0111013,90174.0,90172.0,0.00016632]
[1766987161161,0.0110998,90186.0,90146.0,0.94356]
[1766987161162,0.0111004,90181.0,90167.0,0.0556]
[1766987161468,0.09436,90194.0,90166.0,0.0556]
[1766987161971,0.0110993,90190.0,90166.0,0.0856]
[1766987162164,0.0111018,90170.0,90166.0,0.05560002]
[1766987162365,0.0111002,90183.0,90166.0,0.05560002]
[1766987163272,0.00016632,90187.0,90166.0,0.03000002]
[1766987166366,0.0110998,90186.0,90166.0,0.03000002]
[1766987168277,0.0111001,90184.0,90166.0,0.03000002]
[1766987169264,0.00016632,90187.0,90166.0,0.03000002]
[1766987171680,0.0110998,90186.0,90166.0,0.03000002]
[1766987171879,0.02514407,90185.0,90166.0,0.03000002]
[1766987172071,0.02514407,90184.0,90166.0,0.03000002]
[1766987172270,0.02514407,90183.0,90166.0,0.03000002]
[1766987172481,0.02514407,90182.0,90166.0,0.03000002]
[1766987172680,0.02514407,90181.0,90166.0,0.03000002]
[1766987172867,0.02514407,90180.0,90166.0,0.03000002]
[1766987173071,0.02514407,90179.0,90166.0,0.03000002]
[1766987173271,0.0110998,90186.0,90166.0,0.03000002]
[1766987173472,0.02514235,90185.0,90166.0,0.03000002]
[1766987173670,0.21955889,90176.0,90166.0,0.03]
[1766987173976,0.02514235,90175.0,90156.0,0.0111035]
[1766987174177,0.02514235,90174.0,90156.0,0.0411035]
[1766987174367,0.02514235,90173.0,90156.0,0.0411035]
[1766987174568,0.02514235,90172.0,90156.0,0.0411035]
[1766987174771,0.0556,90177.0,90156.0,0.0411035]
[1766987174772,0.02514235,90171.0,90156.0,0.0411035]
[1766987174968,0.02514235,90170.0,90156.0,0.0411035]
[1766987175283,0.02514235,90169.0,90156.0,0.0411035]
[1766987175473,0.02514235,90168.0,90156.0,0.0411035]
[1766987175673,0.02514235,90167.0,90156.0,0.0411035]
[1766987175876,0.02514235,90166.0,90156.0,0.0411035]
[1766987176072,0.0556,90177.0,90156.0,0.0411035]
[1766987176382,0.02519034,90176.0,90156.0,0.0411035]
[1766987176585,0.02519034,90175.0,90156.0,0.0411035]
[1766987176771,0.02519034,90174.0,90156.0,0.0411035]
[1766987177081,0.02519034,90173.0,90156.0,0.0411035]
[1766987177272,0.02519034,90172.0,90156.0,0.0411035]
[1766987177474,0.02519034,90171.0,90156.0,0.0411035]
[1766987177682,0.02519034,90170.0,90160.0,0.21955889]
[1766987177873,0.02519034,90169.0,90160.0,0.03]
[1766987178075,0.02519034,90168.0,90160.0,0.03]
[1766987178274,0.02519034,90167.0,90160.0,0.03]
[1766987178481,0.23065949,90180.0,90160.0,0.03]
[1766987178683,0.02534857,90179.0,90160.0,0.03]
[1766987178880,0.02534857,90178.0,90160.0,0.03]
[1766987179082,0.02534857,90177.0,90160.0,0.03]
[1766987179281,0.17530857,90176.0,90160.0,0.03]
[1766987179482,0.02534857,90175.0,90160.0,0.03]
[1766987179677,0.02534857,90174.0,90160.0,0.03]
[1766987179879,0.02534857,90173.0,90160.0,0.03]
[1766987180185,0.02534857,90172.0,90160.0,0.03]
[1766987180384,0.02534857,90171.0,90160.0,0.03]
[1766987180589,0.02534857,90170.0,90160.0,0.03]
[1766987180889,0.02534857,90169.0,90160.0,0.03]
[1766987181085,0.02534857,90168.0,90160.0,0.03]
[1766987181286,0.14996,90176.0,90160.0,0.03]
[1766987181481,0.21955889,90170.0,90155.0,0.05576632]
[1766987181681,0.02534157,90169.0,90155.0,0.08576632]
[1766987182082,0.02534157,90169.0,90155.0,0.03016632]
[1766987183582,0.0556,90168.0,90155.0,0.03016632]
[1766987183784,0.02534157,90167.0,90155.0,0.03016632]
[1766987183979,0.0556,90168.0,90155.0,0.03016632]
[1766987184183,0.03643934,90167.0,90155.0,0.03016632]
[1766987184386,0.11969724,90166.0,90155.0,0.03016632]
[1766987184689,0.02533724,90165.0,90155.0,0.03016632]
[1766987184892,0.02533724,90164.0,90155.0,0.03016632]
[1766987185091,0.02533724,90163.0,90155.0,0.03016632]
[1766987185291,0.09436,90166.0,90155.0,0.03016632]
[1766987185493,0.02533029,90165.0,90155.0,0.03016632]
[1766987185790,0.02533029,90164.0,90144.0,0.0111049]
[1766987185982,0.21955889,90160.0,90144.0,0.0411049]
[1766987186178,0.08093029,90159.0,90144.0,0.0411049]
[1766987186379,0.02533029,90158.0,90144.0,0.0411049]
[1766987186581,0.0556,90159.0,90144.0,0.0411049]
[1766987186786,0.02532393,90158.0,90144.0,0.0411049]
[1766987186990,0.02532393,90157.0,90144.0,0.0411049]
[1766987187189,0.0556,90159.0,90144.0,0.0411049]
[1766987187389,0.02531858,90158.0,90144.0,0.0411049]
[1766987187590,0.02531858,90157.0,90144.0,0.0411049]
[1766987187791,0.0556,90159.0,90144.0,0.0411049]
[1766987187984,0.02532001,90158.0,90144.0,0.0411049]
[1766987188190,0.02532001,90157.0,90144.0,0.03]
[1766987188392,0.21955889,90154.0,90144.0,0.03]
[1766987188996,0.09436,90156.0,90144.0,0.03]
[1766987193504,0.21955889,90154.0,90144.0,0.03]
[1766987193803,0.0556,90153.0,90144.0,0.03]
[1766987194602,0.21955889,90150.0,90144.0,0.03]
[1766987194796,0.21955889,90150.0,90144.0,0.01]
[1766987195003,0.0556,90153.0,90144.0,0.00035]
[1766987203918,0.02549861,90152.0,90144.0,0.00035]
[1766987204120,0.0556,90153.0,90144.0,0.00035]
[1766987204314,0.02549862,90152.0,90144.0,0.00035]
[1766987204512,0.0556,90153.0,90144.0,0.00035]
[1766987204712,0.02550071,90152.0,90144.0,0.00035]
[1766987204913,0.0556,90153.0,90144.0,0.00035]
[1766987205113,0.02550073,90152.0,90144.0,0.00035]
[1766987205314,0.0556,90153.0,90144.0,0.00035]
[1766987205621,0.02550282,90152.0,90144.0,0.00035]
[1766987205821,0.0556,90153.0,90144.0,0.00035]
[1766987206017,0.02545099,90152.0,90144.0,0.00035]
[1766987206216,0.0556,90153.0,90144.0,0.00035]
[1766987206514,0.02545331,90152.0,90144.0,0.00035]
[1766987206820,0.0556,90153.0,90144.0,0.00035]
[1766987207015,0.02545379,90152.0,90144.0,0.00035]
[1766987207217,0.0556,90153.0,90144.0,0.00035]
[1766987207418,0.02545715,90152.0,90144.0,0.00035]
[1766987207719,0.02545715,90151.0,90144.0,0.00035]
[1766987207919,0.0556,90153.0,90144.0,0.00035]
[1766987208120,0.02562926,90152.0,90144.0,0.00035]
[1766987208413,0.02562926,90151.0,90144.0,0.00035]
[1766987208624,0.0556,90153.0,90144.0,0.00035]
[1766987208811,0.02563352,90152.0,90144.0,0.00035]
[1766987209007,0.02563352,90151.0,90131.0,0.0556]
[1766987209212,0.2451923,90150.0,90135.0,0.0111061]
[1766987209415,0.02563341,90149.0,90137.0,0.0111058]
[1766987209716,0.21955889,90147.0,90137.0,0.03]
[1766987209921,0.21955889,90147.0,90123.0,0.15]
[1766987209922,0.02563341,90146.0,90123.0,0.15]
[1766987210118,0.00016642,90144.0,90123.0,0.18]
[1766987210316,0.08123341,90143.0,90123.0,0.18]
[1766987210522,0.02563341,90142.0,90123.0,0.18]
[1766987210718,0.00012488,90141.0,90123.0,0.18]
[1766987211325,0.00012488,90141.0,90131.0,0.0111065]
[1766987211524,0.00012488,90141.0,90131.0,0.0411065]
[1766987211825,0.02564054,90140.0,90131.0,0.0411065]
[1766987212026,0.00012488,90141.0,90131.0,0.0411065]
[1766987212324,0.02564065,90140.0,90131.0,0.0411065]
[1766987212627,0.00012488,90141.0,90131.0,0.0411065]
[1766987212823,0.025644,90140.0,90131.0,0.0411065]
[1766987213023,0.21968377,90141.0,90131.0,0.0411065]
[1766987213322,0.02564409,90140.0,90131.0,0.0411065]
[1766987213625,0.21968377,90141.0,90131.0,0.0411065]
[1766987213826,0.02564723,90140.0,90131.0,0.0411065]
[1766987214126,0.21968377,90141.0,90131.0,0.0411065]
[1766987214127,0.02564723,90139.0,90131.0,0.0411065]
[1766987214422,0.02564723,90138.0,90131.0,0.0411065]
[1766987214624,0.00012488,90141.0,90131.0,0.0411065]
[1766987214825,0.02564719,90140.0,90131.0,0.0411065]
[1766987215126,0.02564719,90139.0,90131.0,0.0411065]
[1766987215423,0.02564719,90138.0,90131.0,0.0411065]
[1766987215625,0.00012488,90141.0,90131.0,0.0411065]
[1766987215813,0.02564892,90140.0,90131.0,0.0411065]
[1766987216015,0.02564892,90139.0,90131.0,0.0411065]
[1766987216212,0.02564892,90138.0,90131.0,0.0411065]
[1766987216521,0.00012488,90141.0,90131.0,0.0411065]
[1766987216723,0.02564773,90140.0,90131.0,0.0411065]
[1766987216922,0.02564773,90139.0,90131.0,0.0411065]
[1766987217125,0.02564773,90138.0,90131.0,0.0411065]
[1766987217319,0.00012488,90141.0,90131.0,0.0411065]
[1766987217519,0.02564669,90140.0,90131.0,0.0411065]
[1766987217831,0.02564669,90139.0,90131.0,0.03]
[1766987218127,0.02564669,90138.0,90132.0,0.01109]
[1766987218328,0.02564669,90137.0,90132.0,0.04109]
[1766987218522,0.02564669,90136.0,90132.0,0.04109]
[1766987218826,0.02564669,90135.0,90132.0,0.04109]
[1766987219026,0.00012488,90141.0,90132.0,0.04109]
[1766987219224,0.02569215,90140.0,90132.0,0.04109]
[1766987219422,0.02569215,90139.0,90132.0,0.04109]
[1766987219629,0.02569215,90138.0,90132.0,0.04109]
[1766987219926,0.02569215,90137.0,90132.0,0.04109]
[1766987220128,0.02569215,90136.0,90132.0,0.04109]
[1766987220326,0.02569215,90135.0,90132.0,0.04109]
[1766987220528,0.00012488,90141.0,90132.0,0.04109]
[1766987220730,0.02569037,90140.0,90123.0,0.15]
[1766987221023,0.02569037,90139.0,90123.0,0.18]
[1766987221228,0.00012488,90141.0,90123.0,0.18]
[1766987221229,0.02569037,90138.0,90123.0,0.18]
[1766987221424,0.02569037,90137.0,90123.0,0.18]
[1766987221621,0.02569037,90136.0,90123.0,0.18]
[1766987221825,0.02569037,90135.0,90123.0,0.18]
[1766987222025,0.02569037,90134.0,90123.0,0.18]
[1766987222228,0.02569037,90133.0,90127.0,0.0111069]
[1766987222419,0.00012488,90141.0,90127.0,0.0411069]
[1766987225734,0.05564,90142.0,90130.0,0.0111067]
[1766987225930,0.03691,90144.0,90130.0,0.24955889]
[1766987226134,0.05564,90146.0,90134.0,0.0111061]
[1766987226335,0.05564,90146.0,90134.0,0.0411061]
[1766987228928,0.05564,90146.0,90134.0,0.03]
[1766987229127,0.05564,90146.0,90134.0,0.01003]
[1766987231640,0.00016642,90149.0,90134.0,0.01003]
[1766987231842,0.15004,90148.0,90134.0,0.01003]
[1766987232939,0.15004,90148.0,90134.0,0.0211361]
[1766987234327,0.02546949,90147.0,90134.0,0.0211361]
[1766987234527,0.02546949,90146.0,90134.0,0.0211361]
[1766987234736,0.02546949,90145.0,90134.0,0.0211361]
[1766987234936,0.02546949,90144.0,90134.0,0.0211361]
[1766987235136,0.02546949,90143.0,90134.0,0.0211361]
[1766987235341,0.08110949,90142.0,90134.0,0.01003]
[1766987235532,0.02546949,90141.0,90134.0,0.01003]
[1766987242146,0.03657379,90141.0,90134.0,0.01003]
[1766987242447,0.02546949,90140.0,90134.0,0.01003]
[1766987242743,0.02546949,90139.0,90134.0,0.01003]
[1766987243043,0.02546949,90138.0,90134.0,0.01003]
[1766987243240,0.02546949,90137.0,90134.0,0.01003]
[1766987243544,0.07973583,90168.0,90134.0,0.01003]
[1766987243736,0.0111013,90165.0,90135.0,0.15004]
[1766987244041,0.15004,90164.0,90144.0,0.0111037]
[1766987244230,0.15004,90163.0,90144.0,0.0411037]
[1766987244432,0.0944,90162.0,90144.0,0.0411037]
[1766987244635,0.09456642,90162.0,90144.0,0.03016642]
[1766987244830,0.10566812,90162.0,90144.0,0.03016642]
[1766987246345,0.09456642,90162.0,90144.0,0.03016642]
[1766987246746,0.10566812,90162.0,90144.0,0.03016642]
[1766987247446,0.09456642,90162.0,90144.0,0.03016642]
[1766987249246,0.0111018,90161.0,90144.0,0.03016642]
[1766987250350,0.0111022,90158.0,90144.0,0.03016642]
[1766987250548,0.0111024,90156.0,90144.0,0.03016642]
[1766987254650,0.05564,90157.0,90144.0,0.03016642]
[1766987255457,0.02525472,90156.0,90144.0,0.03016642]
[1766987255651,0.02525472,90155.0,90144.0,0.03016642]
[1766987255956,0.02525472,90154.0,90144.0,0.03016642]
[1766987256157,0.02525472,90153.0,90144.0,0.03016642]
[1766987256356,0.02525472,90152.0,90144.0,0.03016642]
[1766987256556,0.02525472,90151.0,90144.0,0.03016642]
[1766987256757,0.02525472,90150.0,90144.0,0.03016642]
[1766987256958,0.05564,90157.0,90144.0,0.03016642]
[1766987257162,0.0252552,90156.0,90144.0,0.03016642]
[1766987257352,0.0252552,90155.0,90144.0,0.03016642]
[1766987257551,0.0252552,90154.0,90144.0,0.03016642]
[1766987257753,0.0252552,90153.0,90144.0,0.03016642]
[1766987257960,0.0252552,90152.0,90144.0,0.03016642]
[1766987258259,0.0252552,90151.0,90144.0,0.03016642]
[1766987258455,0.0252552,90150.0,90144.0,0.03016642]
[1766987258656,0.0252552,90149.0,90144.0,0.03016642]
[1766987258959,0.05564,90157.0,90144.0,0.03016642]
[1766987259161,0.03634661,90156.0,90135.0,0.0944]
[1766987259354,0.02524421,90155.0,90135.0,0.1244]
[1766987259559,0.02524421,90154.0,90136.0,0.01109]
[1766987259759,0.05564,90157.0,90136.0,0.0521948]
[1766987259760,0.02524421,90153.0,90136.0,0.0521948]
[1766987260061,0.02524421,90152.0,90136.0,0.0521948]
[1766987260360,0.02524421,90151.0,90139.0,0.0111044]
[1766987260554,0.02524421,90150.0,90139.0,0.0411044]
[1766987260754,0.02524421,90149.0,90139.0,0.0411044]
[1766987261057,0.05564,90157.0,90139.0,0.0411044]
[1766987261354,0.02529566,90156.0,90139.0,0.0411044]
[1766987261552,0.02529566,90155.0,90139.0,0.03]
[1766987261752,0.02529566,90154.0,90139.0,0.03]
[1766987261957,0.02529566,90153.0,90139.0,0.03]
[1766987262158,0.02529566,90152.0,90139.0,0.03]
[1766987262359,0.02529566,90151.0,90139.0,0.03]
[1766987262661,0.02529566,90150.0,90139.0,0.03]
[1766987262861,0.02529566,90149.0,90139.0,0.03]
[1766987263061,0.02529566,90148.0,90139.0,0.03]
[1766987263262,0.02529566,90147.0,90139.0,0.03]
[1766987263458,0.05564,90157.0,90139.0,0.03]
[1766987263763,0.02529984,90156.0,90139.0,0.03]
[1766987263952,0.02529984,90155.0,90139.0,0.03]
[1766987264151,0.02529984,90154.0,90139.0,0.03]
[1766987265655,0.0111028,90153.0,90139.0,0.03]
[1766987265859,0.011103,90151.0,90139.0,0.03]
[1766987266063,0.02529984,90150.0,90139.0,0.03]
[1766987266263,0.0111033,90148.0,90139.0,0.02986312]
[1766987266567,0.02529984,90147.0,90139.0,0.02986312]
[1766987266757,0.02529984,90146.0,90139.0,0.02986312]
[1766987266961,0.02529984,90145.0,90139.0,0.02986312]
[1766987267258,0.02529984,90144.0,90139.0,0.02986312]
[1766987267567,0.02529984,90143.0,90139.0,0.02986312]
[1766987267768,0.02529984,90142.0,90139.0,0.02986312]
[1766987267964,0.02529984,90141.0,90139.0,0.02986312]
[1766987268269,0.0556,90155.0,90139.0,0.02986312]
[1766987268660,0.0111028,90153.0,90139.0,0.02986312]
[1766987270662,0.0556,90155.0,90139.0,0.02986312]
[1766987271670,0.0111027,90154.0,90139.0,0.02986312]
[1766987272064,0.0556,90153.0,90139.0,0.02986312]
[1766987273574,0.0667028,90153.0,90139.0,0.02986312]
[1766987275274,0.0556,90153.0,90136.0,0.01109]
[1766987275570,0.0556,90153.0,90136.0,0.04109]
[1766987276162,0.011104,90152.0,90136.0,0.04109]
[1766987276462,0.0111043,90150.0,90136.0,0.04109]
[1766987277474,0.0111046,90148.0,90136.0,0.04109]
[1766987278772,0.0556,90153.0,90136.0,0.04109]
[1766987278976,0.011105,90145.0,90136.0,0.04109]
[1766987280176,0.02510219,90144.0,90136.0,0.04109]
[1766987280383,0.0111055,90140.0,90136.0,0.02]
[1766987280573,0.02510219,90139.0,90135.0,2e-08]
[1766987280774,0.02510219,90139.0,90135.0,0.03000002]
[1766987281471,0.0111051,90144.0,90135.0,0.03000002]
[1766987281772,0.0111053,90142.0,90135.0,0.03000002]
[1766987283269,0.0111056,90140.0,90135.0,2e-08]
[1766987285280,0.0111058,90138.0,90135.0,2e-08]
[1766987286267,0.0111044,90149.0,90129.0,2e-08]
[1766987286484,0.0111065,90132.0,90129.0,2e-08]
[1766987286780,0.0111065,90132.0,90116.0,0.236]
[1766987286781,0.0111065,90132.0,90125.0,0.0556]
[1766987286971,0.0111048,90145.0,90125.0,0.0856]
[1766987287972,0.0111063,90134.0,90125.0,0.0856]
[1766987289482,0.0944,90145.0,90123.0,0.0944]
[1766987289782,0.0944,90145.0,90123.0,0.1244]
[1766987290181,0.0111065,90132.0,90123.0,0.1244]
[1766987291978,0.0111068,90130.0,90123.0,0.03]
[1766987293582,0.0111063,90133.0,90123.0,0.03]
[1766987293784,0.02502239,90132.0,90123.0,0.03]
[1766987293984,0.02502239,90131.0,90123.0,0.03]
[1766987294181,0.03612909,90130.0,90123.0,0.03]
[1766987294385,0.0111067,90130.0,90123.0,0.03]
[1766987296385,0.0111067,90130.0,90123.0,0.02]
[1766987296690,0.0111069,90128.0,90123.0,0.03]
[1766987296886,0.0111069,90128.0,90118.0,0.0556]
[1766987297080,0.0111069,90128.0,90118.0,0.0856]
[1766987298590,0.21979585,90140.0,90118.0,0.0856]
[1766987298791,0.02489365,90139.0,90118.0,0.0856]
[1766987299089,0.02489365,90138.0,90118.0,0.0856]
[1766987299290,0.0111069,90128.0,90118.0,0.0856]
[1766987300482,0.21979585,90140.0,90118.0,0.0856]
[1766987300682,0.02489322,90139.0,90118.0,0.0856]
[1766987300881,0.21979585,90130.0,90115.0,0.0944]
[1766987301189,0.02489322,90129.0,90116.0,0.0556]
[1766987301393,0.02489322,90128.0,90116.0,0.0556]
[1766987301592,0.02489322,90127.0,90116.0,0.03]
[1766987301780,0.02489322,90126.0,90116.0,0.01]
[1766987301981,0.02489322,90125.0,90115.0,0.0556]
[1766987302179,0.00016642,90129.0,90115.0,0.0856]
[1766987304089,0.0111077,90123.0,90115.0,0.0856]
[1766987304292,0.00016642,90129.0,90115.0,0.0856]
[1766987305195,0.0111077,90123.0,90115.0,0.0856]
[1766987305587,0.0111079,90121.0,90115.0,0.03]
[1766987305780,0.00016642,90129.0,90115.0,0.03]
[1766987305983,0.0111077,90122.0,90115.0,0.03]
[1766987306191,0.00016642,90129.0,90115.0,0.03]
[1766987307298,0.0111077,90122.0,90115.0,0.03]
[1766987309189,0.00016642,90129.0,90115.0,0.03]
[1766987310297,0.0111077,90123.0,90115.0,0.03]
[1766987310893,0.0111078,90121.0,90115.0,0.03]
[1766987313401,0.00016642,90129.0,90115.0,0.03]
[1766987314300,0.02478272,90128.0,90115.0,0.03]
[1766987314498,0.02478272,90127.0,90115.0,0.03]
[1766987314697,0.05564,90135.0,90117.0,0.21979585]
[1766987314897,0.04064,90136.0,90117.0,0.03]
[1766987315600,0.04080642,90136.0,90117.0,0.03016642]
[1766987316205,0.0111065,90132.0,90117.0,0.03016642]
[1766987316708,0.04080642,90136.0,90117.0,0.03016642]
[1766987317904,0.011107,90128.0,90117.0,0.03016642]
[1766987320506,0.0111066,90131.0,90117.0,0.03016642]
[1766987320808,0.04080642,90136.0,90120.0,0.21979585]
[1766987321007,0.04080642,90136.0,90121.0,0.0556]
[1766987321209,0.04080642,90136.0,90121.0,0.0856]
[1766987322406,0.0111068,90129.0,90121.0,0.0856]
[1766987324312,0.0111065,90132.0,90121.0,0.0856]
[1766987326011,0.04080642,90136.0,90121.0,0.0856]
[1766987326408,0.0111077,90123.0,90121.0,0.03]
[1766987326610,0.0111077,90123.0,90121.0,0.01]
[1766987326914,0.0111077,90123.0,90121.0,2e-08]
[1766987328315,0.0111082,90118.0,90113.0,0.05560009]
[1766987328516,0.21979585,90130.0,90113.0,0.08560009]
[1766987328817,0.02390492,90129.0,90100.0,0.21979585]
[1766987329019,0.21979585,90130.0,90101.0,0.15]
[1766987329020,0.02390492,90128.0,90101.0,0.15]
[1766987329311,0.0111083,90118.0,90101.0,0.18]
[1766987329517,0.21979585,90130.0,90101.0,0.18]
[1766987329708,0.02390595,90129.0,90101.0,0.18]
[1766987329906,0.02390595,90128.0,90101.0,0.18]
[1766987330102,0.02390595,90127.0,90101.0,0.18]
[1766987330305,0.02390595,90126.0,90101.0,0.18]
[1766987330512,0.02390595,90125.0,90101.0,0.18]
[1766987330713,0.02390595,90124.0,90101.0,0.18]
[1766987330917,0.21979585,90130.0,90101.0,0.18]
[1766987331219,0.0111082,90119.0,90101.0,0.18]
[1766987331510,0.0111084,90117.0,90102.0,0.0556]
[1766987331719,0.21979585,90130.0,90103.0,0.0944]
[1766987331904,0.02390881,90129.0,90103.0,0.1244]
[1766987332101,0.02390881,90128.0,90103.0,0.1244]
[1766987332305,0.02390881,90127.0,90103.0,0.1244]
[1766987332512,0.02390881,90126.0,90103.0,0.1244]
[1766987332712,0.02390881,90125.0,90103.0,0.1244]
[1766987332922,0.02390881,90124.0,90103.0,0.1244]
[1766987333113,0.21979585,90130.0,90103.0,0.1244]
[1766987333311,0.0111084,90117.0,90103.0,0.1244]
[1766987333718,0.0556,90128.0,90103.0,0.1244]